[Event "*** Titled Tuesday 3|2 Blitz"]
[Site "Chess.com"]
[Date "2016.06.07"]
[Round "2"]
[White "Winehouse83"]
[Black "Noukii"]
[Result "0-1"]
[WhiteElo "2463"]
[BlackElo "2659"]
[TimeControl "180+2"]
[EndTime "11:23:54 PDT"]
[Termination "Noukii won by resignation"]

1. d4 {[%clk 0:03:01.9]} 1... Nf6 {[%clk 0:03:00.8]} 2. c4 {[%clk 0:03:02.8]}
2... c6 {[%clk 0:03:01.4]} 3. Nf3 {[%clk 0:02:59.3]} 3... d5 {[%clk 0:03:00.6]}
4. e3 {[%clk 0:03:00.3]} 4... Bf5 {[%clk 0:03:00.9]} 5. Nc3 {[%clk 0:03:00.5]}
5... e6 {[%clk 0:03:02.3]} 6. Nh4 {[%clk 0:02:58.7]} 6... Be4 {[%clk 0:03:03.9]}
7. f3 {[%clk 0:02:59.4]} 7... Bg6 {[%clk 0:03:05]} 8. Nxg6 {[%clk 0:02:55.4]}
8... hxg6 {[%clk 0:03:06.9]} 9. Bd2 {[%clk 0:02:55.8]} 9... a6 {[%clk
0:03:04.8]} 10. Bd3 {[%clk 0:02:48.6]} 10... Bd6 {[%clk 0:02:59.3]} 11. f4
{[%clk 0:02:48.5]} 11... c5 {[%clk 0:02:55.6]} 12. cxd5 {[%clk 0:02:44.2]} 12...
exd5 {[%clk 0:02:47.1]} 13. O-O {[%clk 0:02:44.2]} 13... Nc6 {[%clk 0:02:46.1]}
14. g3 {[%clk 0:02:30.9]} 14... O-O {[%clk 0:02:37.9]} 15. Ne2 {[%clk
0:02:18.4]} 15... Re8 {[%clk 0:02:34.5]} 16. Rc1 {[%clk 0:02:12.1]} 16... c4
{[%clk 0:02:34.2]} 17. Bb1 {[%clk 0:02:12.3]} 17... b5 {[%clk 0:02:35.6]} 18. h3
{[%clk 0:02:02.3]} 18... Bc7 {[%clk 0:02:24.5]} 19. Kg2 {[%clk 0:01:57.7]} 19...
Qd7 {[%clk 0:02:07.1]} 20. Ng1 {[%clk 0:01:58.2]} 20... Ne4 {[%clk 0:02:06.8]}
21. Nf3 {[%clk 0:01:58.9]} 21... f6 {[%clk 0:02:07.4]} 22. Nh4 {[%clk
0:01:42.6]} 22... Kf7 {[%clk 0:02:08.3]} 23. Be1 {[%clk 0:01:35.3]} 23... Ne7
{[%clk 0:01:19.8]} 24. g4 {[%clk 0:01:23.3]} 24... Rh8 {[%clk 0:01:17.9]} 25.
Qf3 {[%clk 0:01:18.9]} 25... f5 {[%clk 0:01:15.8]} 26. Kh2 {[%clk 0:01:11.7]}
26... Rh6 {[%clk 0:00:49.5]} 27. Rg1 {[%clk 0:01:08.7]} 27... Rah8 {[%clk
0:00:49.4]} 28. gxf5 {[%clk 0:00:53]} 28... gxf5 {[%clk 0:00:45.7]} 29. Qg2
{[%clk 0:00:50]} 29... g6 {[%clk 0:00:47.2]} 30. Nf3 {[%clk 0:00:46.8]} 30...
Ng8 {[%clk 0:00:42]} 31. Bxe4 {[%clk 0:00:36.4]} 31... dxe4 {[%clk 0:00:41.8]}
32. Ng5+ {[%clk 0:00:36.2]} 32... Ke8 {[%clk 0:00:39.7]} 33. d5 {[%clk
0:00:35.7]} 33... Nf6 {[%clk 0:00:34.7]} 34. Bc3 {[%clk 0:00:33.8]} 34... Qe7
{[%clk 0:00:31.5]} 35. Kg3 {[%clk 0:00:21.1]} 35... Bb6 {[%clk 0:00:25.3]} 36.
d6 {[%clk 0:00:16.9]} 36... Qxd6 {[%clk 0:00:24.3]} 37. Rcd1 {[%clk 0:00:18]}
37... Qe7 {[%clk 0:00:25.4]} 38. Rge1 {[%clk 0:00:18.7]} 38... Nh5+ {[%clk
0:00:17.4]} 39. Kh2 {[%clk 0:00:18.4]} 39... Bc7 {[%clk 0:00:17.9]} 40. Rf1
{[%clk 0:00:16.5]} 40... Bd6 {[%clk 0:00:17.5]} 41. Bxh8 {[%clk 0:00:16]} 41...
Rxh8 {[%clk 0:00:18.5]} 42. Qd2 {[%clk 0:00:16.2]} 42... Qxg5 {[%clk 0:00:19.2]}
43. Rg1 {[%clk 0:00:12]} 43... Bxf4+ {[%clk 0:00:19.5]} 44. exf4 {[%clk
0:00:12.3]} 44... Qxf4+ {[%clk 0:00:20.5]} 45. Qxf4 {[%clk 0:00:12.5]} 45...
Nxf4 {[%clk 0:00:22.4]} 46. Rg3 {[%clk 0:00:13.8]} 46... Kf7 {[%clk 0:00:23.5]}
47. Rd7+ {[%clk 0:00:13]} 47... Kf6 {[%clk 0:00:25.1]} 48. Rd6+ {[%clk
0:00:13.6]} 48... Ke5 {[%clk 0:00:26.7]} 49. Rxa6 {[%clk 0:00:14.5]} 49... Rd8
{[%clk 0:00:28.4]} 50. Re3 {[%clk 0:00:12.2]} 50... Rd2+ {[%clk 0:00:29]} 51.
Kg3 {[%clk 0:00:13.7]} 51... Nd5 {[%clk 0:00:30]} 52. Re1 {[%clk 0:00:13]} 52...
g5 {[%clk 0:00:31.7]} 53. Ra5 {[%clk 0:00:11.7]} 53... Rxb2 {[%clk 0:00:32.3]}
54. a4 {[%clk 0:00:11.9]} 54... f4+ {[%clk 0:00:29.9]} 55. Kg4 {[%clk
0:00:12.6]} 55... f3 {[%clk 0:00:24.1]} 56. Rxb5 {[%clk 0:00:11.7]} 56... Rxb5
{[%clk 0:00:25.4]} 57. axb5 {[%clk 0:00:13.6]} 57... f2 {[%clk 0:00:27.3]} 58.
Rd1 {[%clk 0:00:12.9]} 58... Ne3+ {[%clk 0:00:27.9]} 0-1

[Event "*** Titled Tuesday 3|2 Blitz"]
[Site "Chess.com"]
[Date "2016.06.07"]
[Round "2"]
[White "Fandorine"]
[Black "sandropozo"]
[Result "1-0"]
[WhiteElo "2584"]
[BlackElo "2440"]
[TimeControl "180+2"]
[EndTime "11:24:20 PDT"]
[Termination "Fandorine won on time"]

1. e4 {[%clk 0:03:01.9]} 1... e6 {[%clk 0:02:59.7]} 2. d4 {[%clk 0:03:02.9]}
2... d5 {[%clk 0:03:01.6]} 3. Nc3 {[%clk 0:03:04.6]} 3... Bb4 {[%clk 0:02:58.7]}
4. e5 {[%clk 0:03:04.5]} 4... c5 {[%clk 0:02:59.2]} 5. a3 {[%clk 0:03:05.5]}
5... Bxc3+ {[%clk 0:03:00.8]} 6. bxc3 {[%clk 0:03:06.8]} 6... Ne7 {[%clk
0:03:02.5]} 7. Qg4 {[%clk 0:03:08]} 7... cxd4 {[%clk 0:03:04]} 8. Bd3 {[%clk
0:03:09.3]} 8... Qa5 {[%clk 0:02:59.6]} 9. Ne2 {[%clk 0:03:10.1]} 9... Ng6
{[%clk 0:02:56.5]} 10. O-O {[%clk 0:03:04.8]} 10... dxc3 {[%clk 0:02:52.3]} 11.
h4 {[%clk 0:03:06.1]} 11... O-O {[%clk 0:01:51.6]} 12. Qg3 {[%clk 0:02:44.6]}
12... Nc6 {[%clk 0:01:26.6]} 13. h5 {[%clk 0:02:36.8]} 13... Ngxe5 {[%clk
0:01:27.7]} 14. Bh6 {[%clk 0:02:38]} 14... g6 {[%clk 0:01:26.2]} 15. hxg6 {[%clk
0:02:34]} 15... hxg6 {[%clk 0:01:22.1]} 16. Bxf8 {[%clk 0:02:17.8]} 16... Kxf8
{[%clk 0:01:23.6]} 17. Rab1 {[%clk 0:02:19.3]} 17... Qxa3 {[%clk 0:01:16]} 18.
Bb5 {[%clk 0:02:16.3]} 18... a6 {[%clk 0:00:56.4]} 19. Bxc6 {[%clk 0:02:14.1]}
19... Nxc6 {[%clk 0:00:58]} 20. Rb3 {[%clk 0:02:05.1]} 20... Qe7 {[%clk
0:00:56.5]} 21. Rxc3 {[%clk 0:02:03.5]} 21... e5 {[%clk 0:00:56.3]} 22. Rb3
{[%clk 0:01:51]} 22... Bf5 {[%clk 0:00:52.2]} 23. Nc3 {[%clk 0:01:33.5]} 23...
Rd8 {[%clk 0:00:51.4]} 24. Rb2 {[%clk 0:01:32.5]} 24... d4 {[%clk 0:00:50.1]}
25. Na2 {[%clk 0:01:27]} 25... e4 {[%clk 0:00:47.9]} 26. Nc1 {[%clk 0:01:13.6]}
26... Ne5 {[%clk 0:00:41.6]} 27. Nb3 {[%clk 0:01:07.6]} 27... Nc4 {[%clk
0:00:36.6]} 28. Rbb1 {[%clk 0:01:05]} 28... d3 {[%clk 0:00:27.9]} 29. cxd3
{[%clk 0:01:01.2]} 29... exd3 {[%clk 0:00:26.9]} 30. Rbe1 {[%clk 0:00:49.7]}
30... Qf6 {[%clk 0:00:27.4]} 31. Qc7 {[%clk 0:00:50]} 31... b5 {[%clk
0:00:23.2]} 32. Nc5 {[%clk 0:00:39.6]} 32... d2 {[%clk 0:00:22.6]} 33. Ra1
{[%clk 0:00:40.4]} 33... Rc8 {[%clk 0:00:17.2]} 34. Qa7 {[%clk 0:00:21.2]} 34...
Kg7 {[%clk 0:00:15.3]} 35. Rxa6 {[%clk 0:00:18.1]} 35... Qe5 {[%clk 0:00:16.4]}
36. Nb3 {[%clk 0:00:11.8]} 36... Qc3 {[%clk 0:00:14.8]} 37. Nxd2 {[%clk
0:00:05.5]} 37... Nxd2 {[%clk 0:00:13.9]} 38. Rd1 {[%clk 0:00:06.6]} 38... Bg4
{[%clk 0:00:12.5]} 39. Ra3 {[%clk 0:00:06.6]} 39... Qe5 {[%clk 0:00:10.7]} 40.
Rda1 {[%clk 0:00:03.8]} 40... Ne4 {[%clk 0:00:09.7]} 41. Re3 {[%clk 0:00:04.9]}
41... Qf4 {[%clk 0:00:10]} 42. f3 {[%clk 0:00:05.2]} 42... Nc5 {[%clk
0:00:11.1]} 43. Rae1 {[%clk 0:00:03.4]} 43... Be6 {[%clk 0:00:12.1]} 44. Qa1+
{[%clk 0:00:04.9]} 44... Qf6 {[%clk 0:00:12.5]} 45. Qa7 {[%clk 0:00:06.6]} 45...
Rh8 {[%clk 0:00:11.9]} 46. Qxc5 {[%clk 0:00:07.2]} 46... Qh4 {[%clk 0:00:13.1]}
47. Qe5+ {[%clk 0:00:08.2]} 47... Kg8 {[%clk 0:00:14.4]} 48. Re4 {[%clk
0:00:09]} 48... Qh1+ {[%clk 0:00:14.1]} 49. Kf2 {[%clk 0:00:10.4]} 49... Qh5
{[%clk 0:00:14.8]} 50. Qb8+ {[%clk 0:00:10.8]} 50... Kg7 {[%clk 0:00:15.5]} 51.
Qf4 {[%clk 0:00:11.7]} 51... Rc8 {[%clk 0:00:15.3]} 52. R1e2 {[%clk 0:00:11.5]}
52... Qc5+ {[%clk 0:00:15.1]} 53. Kg3 {[%clk 0:00:12.2]} 53... Bc4 {[%clk
0:00:16]} 54. Rd2 {[%clk 0:00:11]} 54... Rc6 {[%clk 0:00:12.9]} 55. Rd7 {[%clk
0:00:10]} 55... Rf6 {[%clk 0:00:14.1]} 56. Qe5 {[%clk 0:00:10.8]} 56... Qg1
{[%clk 0:00:09.2]} 57. Rd6 {[%clk 0:00:10.1]} 57... Be6 {[%clk 0:00:09.5]} 58.
Rf4 {[%clk 0:00:10.8]} 1-0

[Event "*** Titled Tuesday 3|2 Blitz"]
[Site "Chess.com"]
[Date "2016.06.07"]
[Round "2"]
[White "charlescandycampbell"]
[Black "kereswasbest"]
[Result "0-1"]
[WhiteElo "2036"]
[BlackElo "2127"]
[TimeControl "180+2"]
[EndTime "11:24:20 PDT"]
[Termination "kereswasbest won by resignation"]

1. d4 {[%clk 0:03:01.9]} 1... d5 {[%clk 0:03:00.6]} 2. c4 {[%clk 0:03:00.6]}
2... e6 {[%clk 0:03:00.9]} 3. Nc3 {[%clk 0:03:01.8]} 3... Be7 {[%clk 0:03:01.6]}
4. Nf3 {[%clk 0:03:02.1]} 4... Nf6 {[%clk 0:03:03.1]} 5. Bg5 {[%clk 0:03:02.4]}
5... O-O {[%clk 0:03:03.8]} 6. e3 {[%clk 0:03:03.7]} 6... Nbd7 {[%clk
0:03:01.8]} 7. Bd3 {[%clk 0:03:04.7]} 7... dxc4 {[%clk 0:02:59.9]} 8. Bxc4
{[%clk 0:03:05.5]} 8... c5 {[%clk 0:03:01.5]} 9. O-O {[%clk 0:03:05]} 9... a6
{[%clk 0:03:02.1]} 10. a4 {[%clk 0:03:02.5]} 10... b6 {[%clk 0:03:02.8]} 11. Qe2
{[%clk 0:03:01.8]} 11... Bb7 {[%clk 0:03:03.5]} 12. Rfd1 {[%clk 0:03:02.8]}
12... Qc7 {[%clk 0:02:59.5]} 13. Rac1 {[%clk 0:03:02.7]} 13... h6 {[%clk
0:02:54.2]} 14. Bf4 {[%clk 0:03:02.5]} 14... Bd6 {[%clk 0:02:48.3]} 15. Bxd6
{[%clk 0:02:54.6]} 15... Qxd6 {[%clk 0:02:50.2]} 16. e4 {[%clk 0:02:53.7]} 16...
Qf4 {[%clk 0:02:36.2]} 17. d5 {[%clk 0:02:42.6]} 17... exd5 {[%clk 0:02:34]} 18.
exd5 {[%clk 0:02:43]} 18... Rfe8 {[%clk 0:02:32.6]} 19. Qd3 {[%clk 0:02:43.6]}
19... Ne5 {[%clk 0:02:27.5]} 20. Nxe5 {[%clk 0:02:43.1]} 20... Rxe5 {[%clk
0:02:28.8]} 21. Re1 {[%clk 0:02:35.8]} 21... Rae8 {[%clk 0:02:21]} 22. Rf1
{[%clk 0:02:28.4]} 22... Rd8 {[%clk 0:01:57.9]} 23. Bxa6 {[%clk 0:02:26.9]}
23... Bxd5 {[%clk 0:01:30.4]} 24. Nxd5 {[%clk 0:02:14.6]} 24... Rdxd5 {[%clk
0:01:32.3]} 25. Qg3 {[%clk 0:02:04]} 25... Qxa4 {[%clk 0:01:27.7]} 26. Bc4
{[%clk 0:01:57]} 26... Rd4 {[%clk 0:01:22.2]} 27. b3 {[%clk 0:01:56]} 27... Qe8
{[%clk 0:01:18.8]} 28. h3 {[%clk 0:01:48.9]} 28... Ne4 {[%clk 0:01:17.1]} 29.
Qf4 {[%clk 0:01:37.2]} 29... Nd2 {[%clk 0:00:45.2]} 30. Bxf7+ {[%clk 0:01:31.3]}
30... Qxf7 {[%clk 0:00:34.4]} 31. Qxe5 {[%clk 0:01:32.1]} 31... Nxf1 {[%clk
0:00:34.3]} 32. Rxf1 {[%clk 0:01:28.8]} 32... Qxb3 {[%clk 0:00:30]} 33. Qe8+
{[%clk 0:01:28.6]} 33... Kh7 {[%clk 0:00:30.5]} 34. Re1 {[%clk 0:01:27.1]} 34...
Qc2 {[%clk 0:00:20.4]} 35. Re3 {[%clk 0:01:21.5]} 35... Qg6 {[%clk 0:00:15.1]}
36. Qe5 {[%clk 0:01:19.3]} 36... Rd1+ {[%clk 0:00:15.1]} 37. Kh2 {[%clk
0:01:19.5]} 37... Qd6 {[%clk 0:00:17]} 38. f4 {[%clk 0:01:18.8]} 38... Qxe5
{[%clk 0:00:17.5]} 39. fxe5 {[%clk 0:01:20.2]} 39... Rd7 {[%clk 0:00:18.3]} 40.
e6 {[%clk 0:01:21.4]} 40... Re7 {[%clk 0:00:19.8]} 41. Kg3 {[%clk 0:01:15.7]}
41... Kg6 {[%clk 0:00:20.5]} 42. Kf4 {[%clk 0:01:16.7]} 42... Kf6 {[%clk
0:00:21.9]} 43. Rb3 {[%clk 0:01:17.9]} 43... Rxe6 {[%clk 0:00:22.9]} 44. g4
{[%clk 0:01:19.2]} 44... g5+ {[%clk 0:00:24.1]} 45. Kf3 {[%clk 0:01:20.4]} 45...
Ke7 {[%clk 0:00:25.6]} 46. Rd3 {[%clk 0:01:21.2]} 46... Rd6 {[%clk 0:00:25.9]}
47. Rb3 {[%clk 0:01:21.8]} 47... Kd7 {[%clk 0:00:27.2]} 48. Ke4 {[%clk
0:01:23.2]} 48... Kc6 {[%clk 0:00:28.4]} 49. Ke5 {[%clk 0:01:24.7]} 49... Rd5+
{[%clk 0:00:25.2]} 50. Ke4 {[%clk 0:01:25.4]} 50... b5 {[%clk 0:00:26]} 51. Rf3
{[%clk 0:01:21.8]} 51... b4 {[%clk 0:00:26]} 52. Rf6+ {[%clk 0:01:21.8]} 52...
Rd6 {[%clk 0:00:27.2]} 53. Rf8 {[%clk 0:01:22.8]} 53... Kb5 {[%clk 0:00:23.6]}
54. Ke5 {[%clk 0:01:21.5]} 54... Rb6 {[%clk 0:00:24.4]} 55. Kd5 {[%clk
0:01:22.1]} 55... b3 {[%clk 0:00:24.1]} 56. Rf3 {[%clk 0:01:21]} 56... c4 {[%clk
0:00:24.5]} 57. Rc3 {[%clk 0:01:20.1]} 57... Rc6 {[%clk 0:00:25.3]} 58. Kd4
{[%clk 0:01:20.1]} 58... Kb4 {[%clk 0:00:25.7]} 59. Rc1 {[%clk 0:01:17.6]} 59...
c3 {[%clk 0:00:26.2]} 60. Kd3 {[%clk 0:01:18.3]} 60... Rd6+ {[%clk 0:00:27]} 61.
Ke3 {[%clk 0:01:19]} 61... b2 {[%clk 0:00:28.1]} 62. Rb1 {[%clk 0:01:19.7]}
62... Kb3 {[%clk 0:00:28.6]} 63. Rf1 {[%clk 0:01:19.1]} 63... c2 {[%clk
0:00:28.6]} 64. Ke4 {[%clk 0:01:20]} 64... Re6+ {[%clk 0:00:24.4]} 65. Kf5
{[%clk 0:01:18.1]} 65... Re3 {[%clk 0:00:24.5]} 66. Kg6 {[%clk 0:01:17.9]} 66...
Rxh3 {[%clk 0:00:24.7]} 67. Rf8 {[%clk 0:01:15]} 67... c1=Q {[%clk 0:00:23.3]}
68. Rb8+ {[%clk 0:01:15]} 68... Kc2 {[%clk 0:00:23.7]} 69. Rc8+ {[%clk
0:01:16.3]} 69... Kd1 {[%clk 0:00:24]} 70. Rd8+ {[%clk 0:01:17.8]} 70... Qd2
{[%clk 0:00:24.1]} 71. Rf8 {[%clk 0:01:16.3]} 71... b1=Q+ {[%clk 0:00:24.7]} 72.
Kg7 {[%clk 0:01:15]} 72... Qb7+ {[%clk 0:00:23.5]} 73. Kh8 {[%clk 0:01:15.9]}
73... Qd4+ {[%clk 0:00:23.8]} 0-1

[Event "*** Titled Tuesday 3|2 Blitz"]
[Site "Chess.com"]
[Date "2016.06.07"]
[Round "2"]
[White "Grootneus"]
[Black "BjarkeSahl"]
[Result "0-1"]
[WhiteElo "2057"]
[BlackElo "2167"]
[TimeControl "180+2"]
[EndTime "11:24:25 PDT"]
[Termination "BjarkeSahl won by checkmate"]

1. e4 {[%clk 0:03:01.9]} 1... c5 {[%clk 0:02:53.4]} 2. c3 {[%clk 0:03:00.1]}
2... d5 {[%clk 0:02:51.6]} 3. exd5 {[%clk 0:03:02]} 3... Nf6 {[%clk 0:02:52.3]}
4. Nf3 {[%clk 0:02:51.4]} 4... Nxd5 {[%clk 0:02:50]} 5. d4 {[%clk 0:02:51.6]}
5... cxd4 {[%clk 0:02:50.7]} 6. cxd4 {[%clk 0:02:51.1]} 6... e6 {[%clk 0:02:51]}
7. Bd3 {[%clk 0:02:48.9]} 7... Be7 {[%clk 0:02:51.3]} 8. a3 {[%clk 0:02:49.6]}
8... O-O {[%clk 0:02:52]} 9. O-O {[%clk 0:02:50.6]} 9... Nc6 {[%clk 0:02:51.4]}
10. Qe2 {[%clk 0:02:46.5]} 10... Bf6 {[%clk 0:02:51.8]} 11. Rd1 {[%clk
0:02:35.3]} 11... g6 {[%clk 0:02:47.9]} 12. Bh6 {[%clk 0:02:31.9]} 12... Re8
{[%clk 0:02:45.6]} 13. Bc2 {[%clk 0:02:30.2]} 13... Bd7 {[%clk 0:02:42.1]} 14.
Nc3 {[%clk 0:02:25.9]} 14... Nxc3 {[%clk 0:02:41.1]} 15. bxc3 {[%clk 0:02:27.8]}
15... Rc8 {[%clk 0:02:40.6]} 16. Ne5 {[%clk 0:02:28]} 16... Bg7 {[%clk
0:02:30.5]} 17. Bxg7 {[%clk 0:02:27.9]} 17... Kxg7 {[%clk 0:02:31]} 18. Rd3
{[%clk 0:02:24.7]} 18... Nxe5 {[%clk 0:02:25.2]} 19. dxe5 {[%clk 0:02:26.6]}
19... Qe7 {[%clk 0:02:22.2]} 20. Qe3 {[%clk 0:01:55.1]} 20... Bc6 {[%clk
0:02:08.1]} 21. Rd4 {[%clk 0:01:43.2]} 21... Bd5 {[%clk 0:02:07.1]} 22. Rad1
{[%clk 0:01:36.8]} 22... Rc7 {[%clk 0:02:07.8]} 23. h4 {[%clk 0:01:08.8]} 23...
Rec8 {[%clk 0:02:05.6]} 24. R1d3 {[%clk 0:01:09.4]} 24... Bc4 {[%clk 0:01:48.3]}
25. Rd2 {[%clk 0:01:09.6]} 25... Bd5 {[%clk 0:01:49.4]} 26. R2d3 {[%clk
0:01:10]} 26... h5 {[%clk 0:01:40.8]} 27. Rf4 {[%clk 0:01:02.7]} 27... Bc4
{[%clk 0:01:28.4]} 28. Rdd4 {[%clk 0:01:00.7]} 28... Bd5 {[%clk 0:01:28.6]} 29.
Rd3 {[%clk 0:00:58.8]} 29... Bc4 {[%clk 0:01:29.2]} 30. Rdd4 {[%clk 0:01:00]}
30... Ba6 {[%clk 0:01:23]} 31. Qd2 {[%clk 0:00:41.9]} 31... Bb5 {[%clk
0:01:16.8]} 32. a4 {[%clk 0:00:31.4]} 32... Be8 {[%clk 0:01:00.5]} 33. c4 {[%clk
0:00:30.4]} 33... b6 {[%clk 0:00:57.7]} 34. Bd3 {[%clk 0:00:14]} 34... Rc5
{[%clk 0:00:58.9]} 35. Qe3 {[%clk 0:00:14]} 35... Bxa4 {[%clk 0:00:55.8]} 36.
Rf6 {[%clk 0:00:12.6]} 36... Be8 {[%clk 0:00:55.9]} 37. g4 {[%clk 0:00:12]}
37... Qc7 {[%clk 0:00:52.7]} 38. Re4 {[%clk 0:00:09]} 38... hxg4 {[%clk
0:00:49.3]} 39. h5 {[%clk 0:00:09.6]} 39... Rxe5 {[%clk 0:00:45.6]} 40. Rxg6+
{[%clk 0:00:04.8]} 40... fxg6 {[%clk 0:00:45]} 41. Rxe5 {[%clk 0:00:06.2]} 41...
Qe7 {[%clk 0:00:36.2]} 42. Rxe6 {[%clk 0:00:04.8]} 42... Qd7 {[%clk 0:00:29.2]}
43. Qe5+ {[%clk 0:00:03.1]} 43... Kh6 {[%clk 0:00:22.4]} 44. Re7 {[%clk
0:00:03.9]} 44... Qxd3 {[%clk 0:00:21.7]} 45. Qg7+ {[%clk 0:00:04]} 45... Kxh5
{[%clk 0:00:21.3]} 46. Re5+ {[%clk 0:00:05.3]} 46... Qf5 {[%clk 0:00:20.1]} 47.
Qh7+ {[%clk 0:00:06]} 47... Kg5 {[%clk 0:00:20.5]} 48. Rxf5+ {[%clk 0:00:07.9]}
48... gxf5 {[%clk 0:00:21.6]} 49. Qe7+ {[%clk 0:00:08.5]} 49... Kf4 {[%clk
0:00:22.7]} 50. Qd6+ {[%clk 0:00:08.5]} 50... Kg5 {[%clk 0:00:22.9]} 51. Qe7+
{[%clk 0:00:08.7]} 51... Kh5 {[%clk 0:00:22.2]} 52. Qh7+ {[%clk 0:00:08.2]}
52... Kg5 {[%clk 0:00:22.6]} 53. Qg7+ {[%clk 0:00:09.4]} 53... Bg6 {[%clk
0:00:23.3]} 54. Qe7+ {[%clk 0:00:09.8]} 54... Kh5 {[%clk 0:00:24.4]} 55. Qe3
{[%clk 0:00:11.4]} 55... Rxc4 {[%clk 0:00:22.8]} 56. Qb3 {[%clk 0:00:11.5]}
56... Re4 {[%clk 0:00:22.4]} 57. Qa2 {[%clk 0:00:11]} 57... Kg5 {[%clk
0:00:22.2]} 58. Qxa7 {[%clk 0:00:11.6]} 58... Re1+ {[%clk 0:00:23.1]} 59. Kg2
{[%clk 0:00:12.5]} 59... f4 {[%clk 0:00:24.4]} 60. Qxb6 {[%clk 0:00:08.3]} 60...
Be4+ {[%clk 0:00:24.9]} 61. Kh2 {[%clk 0:00:08.9]} 61... Rh1# {[%clk 0:00:24.8]}
0-1

[Event "*** Titled Tuesday 3|2 Blitz"]
[Site "Chess.com"]
[Date "2016.06.07"]
[Round "2"]
[White "GM_Levan_Pantsulaia"]
[Black "GeorgMeier"]
[Result "0-1"]
[WhiteElo "2484"]
[BlackElo "2720"]
[TimeControl "180+2"]
[EndTime "11:24:53 PDT"]
[Termination "GeorgMeier won by resignation"]

1. Nf3 {[%clk 0:03:01.9]} 1... d5 {[%clk 0:03:01]} 2. g3 {[%clk 0:03:03]} 2...
Bg4 {[%clk 0:03:00.2]} 3. Bg2 {[%clk 0:03:03.9]} 3... e6 {[%clk 0:03:00.8]} 4.
d3 {[%clk 0:02:53.7]} 4... Nf6 {[%clk 0:03:01.4]} 5. Nbd2 {[%clk 0:02:54]} 5...
Be7 {[%clk 0:02:55.7]} 6. h3 {[%clk 0:02:46.9]} 6... Bh5 {[%clk 0:02:54.1]} 7.
g4 {[%clk 0:02:48]} 7... Bg6 {[%clk 0:02:54.6]} 8. Nh4 {[%clk 0:02:47.9]} 8...
c5 {[%clk 0:02:53.5]} 9. e3 {[%clk 0:02:45.9]} 9... Nc6 {[%clk 0:02:54.2]} 10.
a3 {[%clk 0:02:37.8]} 10... Qc7 {[%clk 0:02:52.6]} 11. Qe2 {[%clk 0:02:34.8]}
11... O-O {[%clk 0:02:46.5]} 12. Nxg6 {[%clk 0:02:25]} 12... hxg6 {[%clk
0:02:46.5]} 13. h4 {[%clk 0:02:21.8]} 13... d4 {[%clk 0:02:38.1]} 14. e4 {[%clk
0:02:13.7]} 14... Bd6 {[%clk 0:02:31.1]} 15. h5 {[%clk 0:02:00.2]} 15... Bf4
{[%clk 0:02:13.9]} 16. Bh3 {[%clk 0:01:16.6]} 16... Ne5 {[%clk 0:01:57]} 17. Nf3
{[%clk 0:01:10.7]} 17... Bxc1 {[%clk 0:01:47.8]} 18. Rxc1 {[%clk 0:01:10.3]}
18... Nh7 {[%clk 0:01:43.7]} 19. Rg1 {[%clk 0:01:01.4]} 19... Nxf3+ {[%clk
0:01:37.1]} 20. Qxf3 {[%clk 0:01:02.2]} 20... Ng5 {[%clk 0:01:38.7]} 21. Qg3
{[%clk 0:01:03.5]} 21... Qxg3 {[%clk 0:01:18.6]} 22. Rxg3 {[%clk 0:01:03.5]}
22... e5 {[%clk 0:01:20]} 23. c3 {[%clk 0:00:51.2]} 23... Rac8 {[%clk
0:01:18.5]} 24. Kd2 {[%clk 0:00:45.4]} 24... Rfd8 {[%clk 0:01:14.8]} 25. Kc2
{[%clk 0:00:40.4]} 25... c4 {[%clk 0:00:56.2]} 26. dxc4 {[%clk 0:00:39.6]} 26...
Nxe4 {[%clk 0:00:53.7]} 27. Rf3 {[%clk 0:00:19.8]} 27... dxc3 {[%clk 0:00:53.8]}
28. hxg6 {[%clk 0:00:16.1]} 28... Rd2+ {[%clk 0:00:50.7]} 29. Kb1 {[%clk
0:00:15.5]} 29... Rxb2+ {[%clk 0:00:45.8]} 30. Ka1 {[%clk 0:00:16.9]} 30... fxg6
{[%clk 0:00:34.8]} 31. g5 {[%clk 0:00:18]} 31... Rc6 {[%clk 0:00:30.9]} 32.
Rcxc3 {[%clk 0:00:18.1]} 32... Rxf2 {[%clk 0:00:27.6]} 33. Rxf2 {[%clk
0:00:19.3]} 33... Nxf2 {[%clk 0:00:29.5]} 34. Bg2 {[%clk 0:00:20.7]} 34... e4
{[%clk 0:00:21]} 35. Rc2 {[%clk 0:00:21.9]} 35... Ng4 {[%clk 0:00:17.5]} 36.
Bxe4 {[%clk 0:00:23.1]} 36... Rc7 {[%clk 0:00:18.8]} 37. Bd5+ {[%clk 0:00:20.5]}
37... Kf8 {[%clk 0:00:19.6]} 38. Re2 {[%clk 0:00:16.8]} 38... Re7 {[%clk
0:00:18.8]} 39. Rxe7 {[%clk 0:00:13.1]} 39... Kxe7 {[%clk 0:00:20.7]} 40. Bxb7
{[%clk 0:00:14.7]} 40... Kd6 {[%clk 0:00:21.3]} 41. Be4 {[%clk 0:00:15.1]} 41...
Ne5 {[%clk 0:00:22.2]} 42. Ka2 {[%clk 0:00:15.8]} 42... Nf7 {[%clk 0:00:18.4]}
43. Bxg6 {[%clk 0:00:15.4]} 43... Nxg5 {[%clk 0:00:19.9]} 44. Kb3 {[%clk
0:00:16.7]} 44... Kc5 {[%clk 0:00:18]} 45. Ka4 {[%clk 0:00:17.3]} 45... Kb6
{[%clk 0:00:16.5]} 46. Kb4 {[%clk 0:00:16.7]} 46... Ne6 {[%clk 0:00:16.2]} 47.
Kc3 {[%clk 0:00:14.7]} 47... Kc5 {[%clk 0:00:17.2]} 48. Bf7 {[%clk 0:00:14.5]}
48... Ng5 {[%clk 0:00:17.4]} 49. Bg6 {[%clk 0:00:15.3]} 49... Ne6 {[%clk
0:00:18.5]} 50. Bf5 {[%clk 0:00:15.4]} 50... Nd8 {[%clk 0:00:19.2]} 51. Bg6
{[%clk 0:00:15.9]} 51... Nc6 {[%clk 0:00:20.3]} 52. Bf7 {[%clk 0:00:11.2]} 52...
Ne5 {[%clk 0:00:21.6]} 53. Be6 {[%clk 0:00:11.4]} 53... g5 {[%clk 0:00:22.8]}
54. Bd5 {[%clk 0:00:11]} 54... g4 {[%clk 0:00:22.7]} 55. Be6 {[%clk 0:00:11.6]}
55... g3 {[%clk 0:00:23.6]} 56. Bd5 {[%clk 0:00:13.1]} 56... a6 {[%clk
0:00:22.7]} 57. Bg2 {[%clk 0:00:10.6]} 57... Nxc4 {[%clk 0:00:20.8]} 58. Kd3
{[%clk 0:00:11.6]} 58... Nxa3 {[%clk 0:00:19.5]} 59. Ke3 {[%clk 0:00:12.8]}
59... a5 {[%clk 0:00:17.8]} 60. Kf3 {[%clk 0:00:11.1]} 60... a4 {[%clk
0:00:19.2]} 61. Kxg3 {[%clk 0:00:10.4]} 61... Nc4 {[%clk 0:00:19.1]} 62. Be4
{[%clk 0:00:11.1]} 62... Nd2 {[%clk 0:00:17.5]} 63. Bg6 {[%clk 0:00:07.1]} 63...
a3 {[%clk 0:00:18.6]} 0-1